fUST/lending_fUST_20260129
["ID","MTS","AMOUNT","RATE_DAILY","PERIOD"]
[403889996,1769634640557,-2347.87260389,0.00029479,2]
[403889997,1769634640566,-2434.74389024,0.00029534,2]
[403889998,1769634640575,-236.57189686,0.00029589,5]
[403889999,1769634640584,-550.0,0.00029589,5]
[403890000,1769634640593,-2524.82941417,0.00029589,2]
[403890001,1769634640603,-400.0,0.00029608,3]
[403890002,1769634640612,-2618.2481025,0.00029644,2]
[403890003,1769634640621,-1459.38,0.000297,14]
[403890004,1769634640630,-400.0,0.00029808,3]
[403890005,1769634640639,-400.0,0.00029823,3]
[403890006,1769634640648,-6133.44,0.000299,2]
[403890007,1769634640658,-160.5,0.000299,7]
[403890008,1769634640666,-1000.0,0.000299,6]
[403890009,1769634640675,-160.0,0.00029967,2]
[403890010,1769634640684,-1041.66666667,0.00029967,2]
[403890011,1769634640694,-305.6755923,0.00029973,30]
[403890012,1769634640703,-305.6755923,0.00029973,30]
[403890013,1769634640712,-305.6755923,0.00029973,30]
[403890014,1769634640721,-305.6755923,0.00029973,30]
[403890015,1769634640730,-305.6755923,0.00029973,30]
[403890016,1769634640740,-305.6755923,0.00029973,30]
[403890017,1769634640751,-305.6755923,0.00029973,30]
[403890018,1769634640760,-6344.17,0.00029979,30]
[403890019,1769634640774,-1000.0,0.0003,14]
[403890020,1769634640784,-1000.0,0.0003,14]
[403890021,1769634640796,-178.5494496,0.0003,14]
[403890022,1769634640805,-151.0,0.0003,14]
[403890023,1769634640814,-185.4228781,0.00030027,30]
[403890024,1769634640823,-153.0,0.00030027,30]
[403890025,1769634640832,-185.4228781,0.00030027,30]
[403890026,1769634640842,-153.0,0.00030027,30]
[403890027,1769634640851,-153.0,0.00030027,30]
[403890028,1769634640860,-185.4228781,0.00030027,30]
[403890029,1769634640869,-185.4228781,0.00030027,30]
[403890030,1769634640878,-153.0,0.00030027,30]
[403890031,1769634640888,-185.4228781,0.00030027,30]
[403890032,1769634640897,-153.0,0.00030027,30]
[403890033,1769634640906,-153.0,0.00030027,30]
[403890034,1769634640917,-153.0,0.00030027,30]
[403890035,1769634640926,-153.0,0.00030027,30]
[403890036,1769634640935,-153.0,0.00030027,30]
[403890037,1769634640944,-1000.0,0.00030046,14]
[403890038,1769634640953,-151.0,0.0003006,14]
[403890039,1769634640962,-1000.0,0.00030092,14]
[403890040,1769634640972,-151.0,0.0003012,14]
[403890041,1769634640983,-161.0,0.00030128,3]
[403890042,1769634640996,-175.20269643,0.00030137,2]
[403890043,1769634641005,-650.0,0.00030137,5]
[403890044,1769634641014,-1000.0,0.00030138,14]
[403890045,1769634641023,-161.0,0.00030143,3]
[403890046,1769634641033,-151.0,0.0003018,14]
[403890047,1769634641042,-730.0,0.00030183,3]
[403890048,1769634641051,-1000.0,0.00030184,14]
[403890049,1769634641061,-400.0,0.00030191,3]
[403890050,1769634641071,-197.0,0.00030205,14]
[403890051,1769634641080,-1000.0,0.0003023,14]
[403890052,1769634641090,-151.0,0.0003024,14]
[403890053,1769634641099,-1000.0,0.0003026,14]
[403890054,1769634641108,-1000.0,0.00030276,14]
[403890055,1769634641118,-293.17,0.000303,7]
[403890056,1769634641127,-151.0,0.000303,14]
[403890057,1769634641136,-873.28174039,0.00030304,2]
[403890058,1769634641145,-1000.0,0.00030322,14]
[403890059,1769634641154,-151.0,0.0003036,14]
[403890060,1769634641164,-1000.0,0.00030368,14]
[403890061,1769634641173,-1000.0,0.00030388,30]
[403890062,1769634641182,-1000.0,0.00030388,30]
[403890063,1769634641191,-1000.0,0.000304,6]
[403890064,1769634641200,-1000.0,0.00030413,14]
[403890065,1769634641209,-151.0,0.00030421,14]
[403890066,1769634641218,-1000.0,0.00030459,14]
[403890067,1769634641227,-1043.65606314,0.00030479,2]
[403890068,1769634641236,-151.0,0.00030481,14]
[403890069,1769634641245,-41199.39838599,0.000305,31]
[403890070,1769634641255,-1000.0,0.00030505,14]
[403890071,1769634641264,-1000.0,0.00030521,14]
[403890072,1769634641273,-151.0,0.00030541,14]
[403890073,1769634641282,-3345.85811945,0.00030548,2]
[403890074,1769634641291,-1000.0,0.00030551,14]
[403890075,1769634641300,-1000.0,0.00030597,14]
[403890076,1769634641309,-151.0,0.00030601,14]
[403890077,1769634641318,-1000.0,0.00030643,14]
[403890078,1769634641327,-206.36876951,0.00030646,10]
[403890079,1769634641336,-160.09522763,0.00030646,10]
[403890080,1769634641346,-1263.1855115,0.00030658,30]
[403890081,1769634641355,-442.0195791,0.00030658,30]
[403890082,1769634641365,-369.8454805,0.00030658,30]
[403890083,1769634641374,-151.0,0.00030661,14]
[403890084,1769634641383,-2935379.37771043,0.00030678,30]
[403890098,1769634643140,-2235.72291812,0.00030678,30]
[403890099,1769634643152,-414.09177835,0.00030678,30]
[403890100,1769634643164,-276.18010432,0.00030678,30]
[403890101,1769634643175,-1906.2663663,0.00030678,30]
[403890102,1769634643187,-7637.29326398,0.00030678,30]
[403890103,1769634643198,-2779.06493124,0.00030678,30]
[403890104,1769634643209,-2029.20787857,0.00030678,30]
[403890392,1769634646117,-1586.04,0.00027395,30]
[403890394,1769634646127,-3172.08,0.0003033,30]
[403890396,1769634646136,-22310.55334768,0.00030678,30]
[403890589,1769635023596,169.70278578,0.0003479,120]
[403890590,1769635115287,309.82544701,0.0001091,2]
[403890629,1769635804039,160.58,0.0001,2]
[403890630,1769635804603,160.58,0.000101,2]
[403890631,1769635805173,160.58,0.000102,2]
[403890632,1769635805671,160.58,0.000103,2]
[403890633,1769635806775,160.58,0.000104,2]
[403890634,1769635807169,160.58,0.000105,2]
[403890635,1769635807738,160.58,0.000105,2]
[403890636,1769635808573,160.58,0.000106,2]
[403890637,1769635808699,160.58,0.000107,2]
[403890638,1769635809509,160.58,0.000108,2]
[403890639,1769635819759,-572.94936333,0.00011078,2]
[403890640,1769635821151,-500.0,0.00011078,2]
[403890649,1769635832058,-714.14912623,0.00011078,2]
[403890746,1769635838316,-3014.23639132,0.00011078,2]
[403890747,1769635838327,-2065.43027535,0.0001119,2]
[403890748,1769635838339,-2934.56972465,0.0001119,2]
[403890749,1769635838349,-1200.0,0.00011302,2]
[403890750,1769635838358,-5000.0,0.00011303,2]
[403890751,1769635838370,-300.0,0.00011531,2]
[403890752,1769635838379,-300.0,0.00011531,2]
[403890753,1769635838389,-365.39869448,0.00011825,2]
[403890754,1769635838398,-170.58,0.00012329,2]
[403890755,1769635838408,-852.95,0.00012329,2]
[403890756,1769635838417,-1375.0,0.00012432,2]
[403890757,1769635838426,-420.0,0.00012664,2]
[403890758,1769635838436,-500.0,0.00013273,2]
[403890759,1769635838445,-500.0,0.00013273,2]
[403890760,1769635838455,-500.0,0.00013273,2]
[403890761,1769635838464,-500.0,0.00013273,2]
[403890762,1769635838474,-500.0,0.00013273,2]
[403890763,1769635838484,-325.9592572,0.00013478,2]
[403890764,1769635838493,-17033.11655257,0.00013479,2]
[403890765,1769635838505,-43237.65234112,0.00013479,2]
[403890766,1769635838514,-300.0,0.00013673,2]
[403890767,1769635838678,-500.0,0.00013699,2]
[403890768,1769635838696,-500.0,0.00013699,2]
[403890769,1769635838706,-500.0,0.00013699,2]
[403890770,1769635838715,-500.0,0.00013699,2]
[403890771,1769635838725,-421.30369645,0.00013699,2]
[403890772,1769635838734,-151.0,0.000137,2]
[403890773,1769635838744,-151.0,0.000137,2]
[403890774,1769635838753,-151.0,0.000137,2]
[403890775,1769635838763,-151.0,0.000137,2]
[403890776,1769635838772,-151.0,0.000137,2]
[403890777,1769635838781,-151.0,0.000137,2]
[403890778,1769635838791,-151.0,0.000137,2]
[403890779,1769635838800,-151.0,0.000137,2]
[403890780,1769635838810,-151.0,0.000137,2]
[403890781,1769635838819,-151.0,0.000137,2]
[403890782,1769635838828,-1720000.0,0.0001372,2]
[403890783,1769635838837,-500.0,0.0001382,2]
[403890784,1769635838846,-855.419529,0.00013821,2]
[403890785,1769635838856,-507.06964924,0.00013821,2]
[403890786,1769635838865,-1000.0,0.00013821,2]
[403890787,1769635838874,-1000.0,0.00013821,2]
[403890788,1769635838884,-1000.0,0.00013821,2]
[403890789,1769635838893,-431.17045948,0.00013825,2]
[403890790,1769635838903,-587.0,0.00013909,2]
[403890791,1769635838912,-100000.0,0.0001399,2]
[403890792,1769635838921,-300.0,0.00014096,2]
[403890793,1769635838930,-300.0,0.00014096,2]
[403890794,1769635838939,-300.0,0.00014096,2]
[403890795,1769635838948,-300.0,0.00014096,2]
[403890796,1769635838957,-300.0,0.00014096,2]
[403890797,1769635838967,-300.0,0.00014096,2]
[403890798,1769635838976,-300.0,0.00014096,2]
[403890799,1769635838986,-300.0,0.00014096,2]
[403890800,1769635838995,-300.0,0.00014096,2]
[403890801,1769635839004,-300.0,0.00014096,2]
[403890802,1769635839014,-300.0,0.00014096,2]
[403890803,1769635839023,-300.0,0.00014096,2]
[403890804,1769635839032,-300.0,0.00014096,2]
[403890805,1769635839042,-300.0,0.00014096,2]
[403890806,1769635839051,-300.0,0.00014096,2]
[403890807,1769635839061,-600.0,0.00014221,2]
[403890808,1769635839070,-176.845,0.00014221,2]
[403890809,1769635839080,-1134.23032778,0.00014247,2]
[403890810,1769635839089,-1000.0,0.00014247,2]
[403890811,1769635839098,-1000.0,0.00014247,2]
[403890812,1769635839108,-722.3651231,0.00014247,2]
[403890813,1769635839117,-1500.0,0.00014368,2]
[403890814,1769635839126,-1500.0,0.00014368,2]
[403890815,1769635839136,-1500.0,0.00014368,2]
[403890816,1769635839147,-600.0,0.00014377,2]
[403890817,1769635839157,-174.55748242,0.00014616,2]
[403890818,1769635839166,-900.0,0.00014768,2]
[403890819,1769635839176,-4481.88055191,0.0001479,2]
[403890820,1769635839186,-1500.0,0.00014795,2]
[403890821,1769635839195,-500.0,0.00014795,2]
[403890822,1769635839205,-250.0,0.0001489,2]
[403890823,1769635839214,-595.91731816,0.000149,2]
[403890824,1769635839224,-2000.0,0.00014916,2]
[403890825,1769635839234,-2000.0,0.00014916,2]
[403890826,1769635839243,-2000.0,0.00014916,2]
[403890827,1769635839252,-1020.62629067,0.00015,2]
[403890828,1769635839262,-90000.0,0.00015,2]
[403890829,1769635839271,-40878.38369255,0.00015,2]
[403890830,1769635839283,-151.23745507,0.00015,2]
[403890831,1769635839292,-152.70966246,0.00015027,2]
[403890832,1769635839301,-250.0,0.00015086,2]
[403890833,1769635839310,-823.0,0.00015277,2]
[403890834,1769635839319,-1200.0,0.00015316,2]
[403890835,1769635839330,-2000.0,0.00015342,2]
[403890836,1769635839339,-1105427.35101153,0.000154,2]
[403890837,1769635839348,-2500.0,0.00015464,2]
[403890838,1769635839359,-2500.0,0.00015464,2]
[403890839,1769635839368,-574.12268118,0.00015464,2]
[403890840,1769635839377,-5038.08922706,0.0001564,2]
[403890841,1769635839387,-720.0,0.00015815,2]
[403890842,1769635839397,-496.94222449,0.00015825,2]
[403890843,1769635839407,-993.63223956,0.00015864,2]
[403890844,1769635839416,-2500.0,0.0001589,2]
[403890845,1769635839425,-216.23346271,0.00016,2]
[403890846,1769635839434,-3000.0,0.00016012,2]
[403890847,1769635839443,-2202.90287346,0.00016012,2]
[403890848,1769635839452,-200.0,0.00016438,2]
[403890849,1769635839462,-500.0,0.00016438,2]
[403890850,1769635839472,-474.54159977,0.00016438,2]
[403890851,1769635839480,-150.42150351,0.00016438,2]
[403890852,1769635839490,-164.57351573,0.00016438,2]
[403890853,1769635839499,-3000.0,0.00016438,2]
[403890854,1769635839508,-200.0,0.00016473,2]
[403890855,1769635839519,-1500.0,0.0001656,2]
[403890856,1769635839529,-213.05722388,0.0001674,3]
[403890857,1769635839538,-1152.0,0.00016778,2]
[403890858,1769635839547,-3500.0,0.00016986,2]
[403890859,1769635839557,-92124.15564802,0.00017,2]
[403890860,1769635839566,-4481.88055185,0.00017018,2]
[403890861,1769635839576,-160.0,0.00017099,2]
[403890862,1769635839585,-160.0,0.00017099,2]
[403890863,1769635839594,-1041.66666667,0.00017099,2]
[403890864,1769635839604,-864.0,0.00017396,2]
[403890865,1769635839613,-4000.0,0.00017534,2]
[403890866,1769635839623,-2141.16843233,0.000176,2]
[403890867,1769635839632,-150.12313849,0.00017808,2]
[403890868,1769635839642,-562.71398949,0.00017825,2]
[403890869,1769635839651,-281.81382901,0.00017842,2]
[403890870,1769635839660,-135573.83356864,0.00018,2]
[403890871,1769635839669,-126062.66862741,0.00018,2]
[403890872,1769635839679,-4500.0,0.00018082,2]
[403890873,1769635839687,-9548.19578351,0.000183,3]
[403890874,1769635839696,-1613.0,0.00018428,2]
[403890875,1769635839706,-5000.0,0.0001863,2]
[403890876,1769635839715,-303.10001603,0.000189,2]
[403890877,1769635839724,-69497.33252454,0.00019,2]
[403890878,1769635839733,-11694.55470091,0.00019,2]
[403890879,1769635839742,-2603.49,0.00019,2]
[403890880,1769635839751,-303.10001603,0.00019089,2]
[403890881,1769635839760,-1000.0,0.00019136,2]
[403890882,1769635839769,-508.0614,0.00019178,2]
[403890883,1769635839778,-508.0614,0.00019178,2]
[403890884,1769635839787,-200.0,0.00019178,2]
[403890885,1769635839796,-508.0614,0.00019178,2]
[403890886,1769635839805,-508.0614,0.00019178,2]
[403890887,1769635839814,-508.0614,0.00019178,2]
[403890888,1769635839824,-194.85911576,0.00019178,2]
[403890889,1769635839834,-172.01,0.000192,2]
[403890890,1769635839842,-6249.64,0.000192,2]
[403890891,1769635839853,-161.04,0.000192,2]
[403890892,1769635839862,-4481.88055185,0.00019246,2]
[403890893,1769635839871,-298.49895742,0.00019278,2]
[403890894,1769635839882,-1459.38,0.000193,2]
[403890895,1769635839892,-181.0,0.00019479,3]
[403890897,1769635839901,-628.4857545,0.00019825,2]
[403890898,1769635839910,-508.0614,0.0002,4]
[403890900,1769635839919,-508.0614,0.0002,4]
[403890902,1769635839929,-508.0614,0.0002,4]
[403890903,1769635839939,-9506.71508995,0.0002,2]
[403890904,1769635839948,-406.20341507,0.0002,30]
[403890906,1769635839957,-379571.27098759,0.0002,2]
[403890907,1769635839966,-656.05350674,0.0002,7]
[403890909,1769635839975,-2006.0,0.00020239,2]
[403890911,1769635839985,-508.0614,0.00020411,5]
[403890913,1769635839994,-508.0614,0.00020411,5]
[403890914,1769635840003,-508.0614,0.00020411,5]
[403890915,1769635840012,-294.93254528,0.0002045,30]
[403890916,1769635840022,-1000.0,0.00021049,2]
[403890917,1769635840031,-244.0,0.00021049,2]
[403890918,1769635840041,-4481.88055185,0.00021474,2]
[403890919,1769635840050,-694.2575195,0.00021825,2]
[403890920,1769635840059,-185.0,0.00022219,6]
[403890922,1769635840068,-184.47,0.000223,2]
[403890924,1769635840077,-293.17,0.000223,7]
[403890925,1769635840086,-1000.0,0.00023154,10]
[403890926,1769635840095,-492.0,0.00023154,10]
[403890927,1769635840104,-6249.64,0.000232,2]
[403890928,1769635840113,-184.95386914,0.00023453,5]
[403890929,1769635840122,-4481.88055185,0.00023702,2]
[403890930,1769635840131,-161.04,0.000238,7]
[403890931,1769635840140,-760.02928451,0.00023825,2]
[403890932,1769635840149,-295.17750857,0.00024,60]
[403890933,1769635840158,-184.95386914,0.00024179,5]
[403890934,1769635840168,-157.26127169,0.00024179,5]
[403890935,1769635840177,-500.0,0.00024658,2]
[403890937,1769635840186,-500.0,0.00024795,2]
[403890938,1769635840195,-615285.003744,0.000249,2]
[403890939,1769635840203,-288.165348,0.000249,7]
[403890940,1769635840213,-201.250084,0.000249,7]
[403890941,1769635840223,-201.250084,0.000249,7]
[403890942,1769635840232,-201.250084,0.000249,7]
[403890943,1769635840241,-201.250084,0.000249,7]
[403890944,1769635840250,-151.0,0.000249,7]
[403890945,1769635840259,-250.000238,0.000249,7]
[403890946,1769635840268,-250.000238,0.000249,7]
[403890947,1769635840280,-181.272262,0.000249,7]
[403890948,1769635840291,-250.000238,0.000249,7]
[403890949,1769635840299,-151.0,0.000249,7]
[403890950,1769635840309,-250.000238,0.000249,7]
[403890951,1769635840318,-151.0,0.000249,7]
[403890952,1769635840329,-253.42086,0.000249,7]
[403890953,1769635840338,-4223.910113,0.00024932,30]
[403890955,1769635840349,-500.0,0.00024932,2]
[403890957,1769635840358,-184.95386914,0.00024948,5]
[403890958,1769635840367,-188.0,0.00024959,15]
[403890960,1769635840377,-18591.97366051,0.00025,30]
[403890961,1769635840385,-1041.66666667,0.00025,30]
[403890962,1769635840395,-605.0,0.00025069,2]
[403890963,1769635840404,-350.0,0.00025205,2]
[403890964,1769635840413,-900.0,0.00025469,3]
[403890965,1769635840422,-1000.0,0.0002547,10]
[403890966,1769635840431,-791.0,0.0002547,10]
[403890967,1769635840440,-1000.0,0.000255,2]
[403890968,1769635840449,-1041.66666667,0.000255,3]
[403890969,1769635840460,-160.0,0.000255,3]
[403890970,1769635840469,-184.95386914,0.0002572,5]
[403890971,1769635840478,-1581.02,0.0002578,30]
[403890972,1769635840487,-825.80104952,0.00025825,2]
[403890974,1769635840496,-4481.88055185,0.00025929,2]
[403890975,1769635840505,-153000.00000066,0.00026,30]
[403890976,1769635840514,-1041.66666667,0.00026,30]
[403890977,1769635840523,-293.17,0.000261,7]
[403890978,1769635840532,-6249.64,0.000261,2]
[403890979,1769635840541,-161.04,0.000261,7]
[403890980,1769635840551,-1459.38,0.000266,14]
[403890981,1769635840561,-1041.66666667,0.000268,30]
[403890982,1769635840570,-181.555786,0.00026849,30]
[403890983,1769635840580,-1206.831461,0.00026927,30]
[403890984,1769635840589,-184.47,0.00027,2]
[403890985,1769635840598,-423.630165,0.00027,30]
[403890986,1769635840607,-167.0,0.00027,7]
[403890987,1769635840616,-1021.0,0.00027,2]
[403890988,1769635840624,-183.684511,0.00027335,30]
[403890989,1769635840635,-157.1173049,0.00027397,2]
[403890990,1769635840650,-150.61,0.00027503,2]
[403890991,1769635840659,-168.0,0.00027699,25]
[403890992,1769635840668,-1071.528267,0.000277,4]
[403890993,1769635840678,-4524.85601105,0.00027712,2]
[403890994,1769635840686,-891.57281452,0.00027825,2]
[403890995,1769635840696,-250.0,0.00027945,5]
[403890996,1769635840705,-250.0,0.00027945,5]
[403890997,1769635840714,-1021.0,0.00028,2]
[403890998,1769635840723,-1000.0,0.00028017,30]
[403890999,1769635840732,-1000.0,0.00028017,30]
[403891000,1769635840742,-4481.88055185,0.00028157,2]
[403891001,1769635840751,-184.262407,0.000282,30]
[403891002,1769635840760,-1000.0,0.000282,4]
[403891003,1769635840769,-160.0,0.0002838,3]
[403891004,1769635840779,-350.0,0.00028493,5]
[403891005,1769635840788,-350.0,0.00028493,5]
[403891006,1769635840797,-6249.64,0.000285,2]
[403891007,1769635840806,-161.04,0.000285,7]
[403891008,1769635840815,-57391.43410192,0.000285,7]
[403891009,1769635840825,-3162.04,0.00028543,30]
[403891010,1769635840835,-1000.0,0.000287,4]
[403891011,1769635840844,-167.0,0.00028767,14]
[403891012,1769635840854,-906.494079,0.00028862,2]
[403891013,1769635840863,-1000.0,0.00028862,30]
[403891014,1769635840872,-1120.30664514,0.00029,2]
[403891015,1769635840881,-1041.66666667,0.00029,7]
[403891016,1769635840890,-160.0,0.00029,7]
[403891017,1769635840899,-1021.0,0.00029,2]
[403891018,1769635840909,-450.0,0.00029041,5]
[403891019,1769635840918,-450.0,0.00029041,5]
[403891020,1769635840927,-4246.65524428,0.00029162,2]
[403891021,1769635840937,-1957.856,0.00029162,2]
[403891022,1769635840947,-8374.54119744,0.0002917,2]
[403891023,1769635840956,-1000.0,0.000292,4]
[403891024,1769635840966,-306.0,0.00029205,30]
[403891025,1769635840975,-2030.296672,0.00029217,2]
[403891026,1769635840984,-2105.41764886,0.00029272,2]
[403891027,1769635840993,-500.0,0.00029287,7]
[403891028,1769635841003,-2183.31810187,0.00029327,2]
[403891029,1769635841012,-2264.10087164,0.00029382,2]
[403891030,1769635841021,-5000.0,0.00029429,22]
[403891031,1769635841031,-2347.87260389,0.00029437,2]
[403891032,1769635841040,-400.0,0.0002948,3]
[403891033,1769635841049,-2434.74389024,0.00029492,2]
[403891034,1769635841059,-293.17,0.000295,7]
[403891035,1769635841068,-150.61,0.00029537,2]
[403891036,1769635841078,-236.57189686,0.00029589,5]
[403891037,1769635841088,-550.0,0.00029589,5]
[403891038,1769635841097,-1000.0,0.000297,4]
[403891039,1769635841107,-730.0,0.00029763,3]
[403891040,1769635841116,-161.0,0.00029773,3]
[403891041,1769635841125,-161.0,0.00029823,3]
[403891042,1769635841134,-957.34457953,0.00029825,2]
[403891043,1769635841143,-370.8457562,0.00029863,30]
[403891044,1769635841152,-1263.1855115,0.00029863,30]
[403891045,1769635841162,-185.4228781,0.00029863,30]
[403891046,1769635841171,-185.4228781,0.00029863,30]
[403891047,1769635841180,-153.0,0.00029863,30]
[403891048,1769635841189,-185.4228781,0.00029863,30]
[403891049,1769635841199,-185.4228781,0.00029863,30]
[403891050,1769635841208,-153.0,0.00029863,30]
[403891051,1769635841217,-369.8454805,0.00029863,30]
[403891052,1769635841226,-153.0,0.00029863,30]
[403891053,1769635841235,-153.0,0.00029863,30]
[403891054,1769635841245,-180.0,0.0002989,37]
[403891055,1769635841254,-1041.66666667,0.000299,7]
[403891056,1769635841266,-160.0,0.000299,7]
[403891057,1769635841275,-184.47,0.0003,2]
[403891058,1769635841289,-1000.0,0.0003,14]
[403891059,1769635841299,-6249.64,0.0003,2]
[403891060,1769635841307,-161.04,0.0003,7]
[403891061,1769635841316,-1021.0,0.0003,7]
[403891062,1769635841327,-190.0,0.0003,14]
[403891063,1769635841336,-178.5494496,0.0003,14]
[403891064,1769635841345,-151.0,0.0003,14]
[403891065,1769635841355,-621554.77,0.00030013,7]
[403891066,1769635841365,-73017.81,0.00030013,7]
[403891067,1769635841374,-390.5525769,0.00030027,30]
[403891068,1769635841383,-175.20269643,0.00030137,2]
[403891069,1769635841393,-650.0,0.00030137,5]
[403891070,1769635841402,-442.0195791,0.00030137,30]
[403891071,1769635841411,-400.0,0.00030138,3]
[403891072,1769635841420,-174.61919141,0.0003019,3]
[403891073,1769635841429,-181.08010149,0.0003019,3]
[403891074,1769635841439,-500.0,0.0003019,3]
[403891075,1769635841448,-730.21831224,0.0003019,3]
[403891076,1769635841457,-151.0,0.0003019,3]
[403891077,1769635841466,-500.0,0.0003019,3]
[403891078,1769635841477,-151.0,0.0003019,3]
[403891079,1769635841486,-151.0,0.0003019,3]
[403891080,1769635841495,-151.0,0.0003019,3]
[403891081,1769635841504,-151.0,0.0003019,3]
[403891082,1769635841514,-169.33681227,0.0003019,3]
[403891083,1769635841524,-174.61919141,0.0003019,3]
[403891084,1769635841532,-151.0,0.0003019,3]
[403891085,1769635841543,-181.08010149,0.0003019,3]
[403891086,1769635841553,-151.0,0.0003019,3]
[403891087,1769635841562,-151.0,0.0003019,3]
[403891088,1769635841571,-187.78006525,0.0003019,3]
[403891089,1769635841580,-151.0,0.0003019,3]
[403891090,1769635841590,-178.9805666,0.0003019,3]
[403891091,1769635841600,-151.0,0.0003019,3]
[403891092,1769635841609,-194.72792766,0.0003019,3]
[403891093,1769635841618,-151.0,0.0003019,3]
[403891094,1769635841627,-201.93286099,0.0003019,3]
[403891095,1769635841636,-151.0,0.0003019,3]
[403891096,1769635841645,-209.40437684,0.0003019,3]
[403891097,1769635841655,-151.0,0.0003019,3]
[403891098,1769635841664,-217.15233878,0.0003019,3]
[403891099,1769635841673,-286.23816441,0.0003019,3]
[403891100,1769635841682,-225.18697532,0.0003019,3]
[403891101,1769635841691,-233.51889341,0.0003019,3]
[403891102,1769635841700,-578.20924308,0.0003019,3]
[403891103,1769635841709,-242.15909246,0.0003019,3]
[403891104,1769635841719,-599.60298507,0.0003019,3]
[403891105,1769635841727,-250.0,0.0003019,3]
[403891106,1769635841736,-251.11897888,0.0003019,3]
[403891107,1769635841745,-621.78829552,0.0003019,3]
[403891108,1769635841754,-260.4103811,0.0003019,3]
[403891109,1769635841764,-393.96445136,0.0003019,3]
[403891110,1769635841886,-151.0,0.0003019,3]
[403891111,1769635841896,-151.0,0.0003019,3]
[403891112,1769635841905,-270.0455652,0.0003019,3]
[403891113,1769635841914,-280.03725112,0.0003019,3]
[403891114,1769635841924,-151.0,0.0003019,3]
[403891115,1769635841933,-261.79283996,0.0003019,3]
[403891116,1769635841942,-290.39862941,0.0003019,3]
[403891117,1769635841951,-301.1433787,0.0003019,3]
[403891118,1769635841960,-478.75725327,0.0003019,3]
[403891119,1769635841969,-496.47127164,0.0003019,3]
[403891120,1769635841979,-514.84070869,0.0003019,3]
[403891121,1769635841988,-533.88981491,0.0003019,3]
[403891122,1769635841997,-553.64373807,0.0003019,3]
[403891123,1769635842006,-574.12855637,0.0003019,3]
[403891124,1769635842016,-2312.83697232,0.0003019,3]
[403891125,1769635842025,-595.37131296,0.0003019,3]
[403891126,1769635842034,-2398.4119403,0.0003019,3]
[403891127,1769635842043,-617.40005154,0.0003019,3]
[403891128,1769635842052,-2487.15318209,0.0003019,3]
[403891129,1769635842061,-250.0,0.0003019,3]
[403891130,1769635842070,-640.24385345,0.0003019,3]
[403891131,1769635842079,-2579.17784983,0.0003019,3]
[403891132,1769635842088,-594.35199126,0.0003019,3]
[403891133,1769635842097,-2674.60743027,0.0003019,3]
[403891134,1769635842106,-2773.56790519,0.0003019,3]
[403891135,1769635842115,-1459.38,0.000302,14]
[403891136,1769635842124,-1000.0,0.000302,4]
[403891137,1769635842133,-1000.0,0.00030282,14]
[403891138,1769635842143,-151.0,0.00030368,14]
[403891139,1769635842152,-4481.88055185,0.00030385,2]
[403891140,1769635842161,-190.0,0.00030411,14]
[403891141,1769635842171,-1043.65606314,0.00030479,2]
[403891142,1769635842180,-41199.39838599,0.000305,31]
[403891143,1769635842189,-1000.0,0.00030564,14]
[403891144,1769635842198,-400.0,0.00030568,3]
[403891145,1769635842207,-200.0,0.000306,60]